Cogmind - Beta 11.1 @@@ ROGUE MODE // 2022.06.23 @ 10:38:57 Player: ktur Result: Destroyed by DAS Turret with DAS Cannon Performance ------------- Evolutions (1) 500 Regions Visited (5) 1000 Robots Destroyed (59) 295 Value Destroyed (1389) 1389 Prototype IDs (31) 620 Alien Tech Used (0) 0 Bonus (-147) -147 TOTAL SCORE: 3657 Bonus ------- High Alert Combat Kills 19 Follower Combat Kills 227 Aligned with FarCom 300 Friendly Fire -693 Cogmind --------- Core Integrity 0/400 Matter 102/300 Energy 30/100 System Corruption 5% Temperature Cool (0) Movement Treading (240) Ox1 Location -9/Exiles Parts ------- > --- POWER (1) -------- (None) > --- PROPULSION (2) --- Medium Treads > --- UTILITY (3) ------ High-capacity Storage Unit Weapon Cycler Improved Shield Generator > --- WEAPON (3) ------- Improved Assault Rifle Improved Assault Rifle > --- INVENTORY (20) --- Ion Engine Light Treads Improved Treads Improved Treads Experimental Heat Sink High-capacity Matter Pod (0) Experimental Targeting Computer Advanced Weapon Cycler 8R-AWN's Armor/EX Heavy Assault Rifle Heavy Assault Rifle Heavy Assault Rifle Improved Assault Rifle Improved Assault Rifle Grenade Launcher Mini Grenade Launcher Mini Grenade Launcher Heavy Hammer Peak State ------------ > --- POWER ------------ (None) > --- PROPULSION ------- Light Treads Medium Treads > --- UTILITY ---------- Experimental Heat Sink High-capacity Storage Unit Weapon Cycler > --- WEAPON ----------- Improved Assault Rifle Improved Assault Rifle Improved Assault Rifle > --- INVENTORY -------- Ion Engine Light Treads Improved Treads Improved Treads High-capacity Matter Pod Heavy Assault Rifle Heavy Assault Rifle Heavy Assault Rifle Improved Assault Rifle Improved Assault Rifle Grenade Launcher Mini Grenade Launcher Mini Grenade Launcher Heavy Hammer [Rating: 28] Favorites ----------- Power Light Ion Engine Engine Light Ion Engine Propulsion Light Treads Treads Light Treads Utility High-capacity Storage Unit Device Heat Sink Storage High-capacity Storage Unit Processor Targeting Computer Protection Light Armor Plating Weapon Assault Rifle Energy Gun Medium Laser Ballistic Gun Assault Rifle Launcher Mini Grenade Launcher Special Melee Weapon Datajack Build | -11 -10 -10 -9 -9 -9 ------- Run | Scr Mat Min Mat Min Exi Slots Evolved 2 | . . . 2 . . Power . | . . . . . . Propulsion . | . . . . . . Utility 1 | . . . 1 . . Weapon 1 | . . . 1 . . Parts Attached 77 | 6 19 . 39 2 11 Power 8 | 1 3 . 4 . . Engine 8 | 1 3 . 4 . . Core . | . . . . . . Reactor . | . . . . . . Propulsion 20 | 2 6 . 9 2 1 Treads 20 | 2 6 . 9 2 1 Leg . | . . . . . . Wheel . | . . . . . . Hover . | . . . . . . Flight . | . . . . . . Utility 17 | 1 4 . 7 . 5 Device 4 | . 1 . . . 3 Storage 3 | 1 2 . . . . Processor 1 | . 1 . . . . Hackware . | . . . . . . Protection 9 | . . . 7 . 2 Artifact . | . . . . . . Weapon 32 | 2 6 . 19 . 5 Energy Gun 7 | 1 2 . 4 . . Energy Cannon . | . . . . . . Ballistic Gun 20 | 1 3 . 13 . 3 Ballistic Cannon . | . . . . . . Launcher 4 | . . . 2 . 2 Special Weapon . | . . . . . . Impact Weapon . | . . . . . . Slashing Weapon . | . . . . . . Piercing Weapon . | . . . . . . Special Melee Weapon 1 | . 1 . . . . Unidentified Prototypes 2 | . . . 1 . 1 Parts Lost 8 | . 2 . . . 6 Power 2 | . 1 . . . 1 Propulsion 2 | . . . . . 2 Utility 2 | . . . . . 2 Weapon 2 | . 1 . . . 1 Highest Loss Streak 3 | . 1 . . . 3 To Critical Strikes 2 | . . . . . 2 Average Slot Usage (%) 95 | . 97 100 99 100 73 Engine 11 | . 13 14 11 11 5 Treads 24 | . 27 28 21 22 18 Device 3 | . 9 . . . 7 Storage 12 | . 14 14 11 11 11 Processor 8 | . 2 14 11 11 4 Protection 4 | . . . 10 11 7 Energy Gun 9 | . 12 14 8 . . Ballistic Gun 19 | . 15 14 24 33 18 Naked Turns . | . . . . . . Heaviest Build 60 | 12 48 47 59 59 60 Greatest Support 48 | 40 40 40 40 40 48 Greatest Overweight (x) 2 | 1 2 1 1 1 1 Average Overweight (x) . | . . 1 1 1 1 Largest Inventory Capacity 20 | 8 20 20 20 20 20 Average Capacity 19 | 6 19 20 20 20 20 Most Carried 20 | 6 20 20 20 20 20 Average Carried 18 | 3 14 19 19 19 19 Final Capacity 20 | 8 20 20 20 20 20 Final Carried 20 | 6 20 20 20 20 20 Class Distribution -------------------- 56% | Mutant 21% | Gunner 18% | Scavenger-Gunner 3% | Tank Dominant Class ---------------- Mutant | -10/Materials Mutant | -10/Mines Scavenger-Gunner | -9/Materials Gunner | -9/Mines Mutant | -9/Exiles Resources | -11 -10 -10 -9 -9 -9 ----------- Run | Scr Mat Min Mat Min Exi Matter Collected 2179 | 203 649 32 904 49 342 Remotely . | . . . . . . Salvage Created 2408 | . 671 93 1441 87 116 Parts 137 | . 45 5 78 5 4 Haulers Intercepted 6 | . 2 . 4 . . Recyclers Shooed 2 | . 2 . . . . Parts Field Recycled . | . . . . . . Retrieved Matter . | . . . . . . Parts Self-Destructed . | . . . . . . Prevented . | . . . . . . Kills | -11 -10 -10 -9 -9 -9 ------- Run | Scr Mat Min Mat Min Exi Combat Hostiles Destroyed 41 | . 13 2 19 2 5 Guns 36 | . 13 2 19 1 1 AOE 5 | . . . . 1 4 Classes Destroyed 11 | . 7 . 3 . 1 Worker 5 | . 2 . 3 . . Tunneler 3 | . 1 1 1 . . Hauler 6 | . 2 . 4 . . Recycler 3 | . 1 . 2 . . Operator 2 | . 2 . . . . Watcher 3 | . . . 3 . . Swarmer 6 | . 5 . 1 . . Grunt 21 | . 8 2 9 2 . Brawler 1 | . . . 1 . . Sentry 8 | . . . 8 . . Assembled 7 | . . . . . 7 Best Kill Streak 6 | . 3 2 6 2 4 Combat Bots Only 4 | . 3 2 3 2 4 Max Kills in Single Turn 3 | . 1 1 2 1 3 Gunslinging . | . . . . . . Exploded 3 | . . . . 1 3 Melee . | . . . . . . Uniques/NPCs Destroyed 1 | . . . . . 1 8R-AWN (-9/Exiles) Combat | -11 -10 -10 -9 -9 -9 -------- Run | Scr Mat Min Mat Min Exi Damage Taken 2890 | . 652 80 887 84 1187 Core 564 | . 124 11 105 16 308 Absorbed by Shields 15 | . . . . . 15 Regen/Repaired (Parts) 386 | . 386 . . . . Core Remaining (%) 73 | 100 . 46 . . . Volleys Fired 197 | . 72 6 79 5 35 Largest 3 | . 2 2 3 3 3 Hottest 102 | . 70 70 102 69 69 Shots Fired 496 | . 137 12 231 16 100 Gun 488 | . 137 12 228 16 95 Cannon . | . . . . . . Launcher 8 | . . . 3 . 5 Special . | . . . . . . Kinetic 367 | . 79 6 171 16 95 Thermal 121 | . 58 6 57 . . Explosive 8 | . . . 3 . 5 Electromagnetic . | . . . . . . Robot Hit Streak 15 | . 12 5 15 4 13 Robot Miss Streak 5 | . 5 1 4 4 3 Penetration Max . | . . . . . . Secondary Targets 3 | . . . 3 . . Max Gunslinging Chain 1 | . . . 1 . . Shots Hit Robots 323 | . 91 10 141 7 74 Core Hits 119 | . 34 4 51 3 27 Critical Kills . | . . . . . . Critical Parts Destroyed 4 | . . . 3 . 1 Critical Strikes 13 | . 3 . 9 . 1 Burn 9 | . 3 . 6 . . Destroy 4 | . . . 3 . 1 Melee Attacks . | . . . . . . Impact . | . . . . . . Slashing . | . . . . . . Piercing . | . . . . . . Sneak Attacks . | . . . . . . Combat Hostiles . | . . . . . . Follow-up Attacks . | . . . . . . Damage Inflicted 5309 | . 1242 165 2185 132 1585 Guns 4627 | . 1207 133 2161 101 1025 Cannons . | . . . . . . Explosions 591 | . . . . 31 560 Melee . | . . . . . . Ramming 91 | . 35 32 24 . . Kinetic 3428 | . 655 55 1592 101 1025 Thermal 1230 | . 552 78 569 31 . Explosive 560 | . . . . . 560 Electromagnetic . | . . . . . . Impact . | . . . . . . Slashing . | . . . . . . Piercing . | . . . . . . Highest Corruption 5 | . . . 5 5 5 Average Corruption 3 | . . . 1 5 5 Corruption Purged . | . . . . . . Corruption Blocked . | . . . . . . Effects 48 | . . . 11 13 24 Message Errors 11 | . . . 3 4 4 Matter Fused 12 | . . . 3 4 5 Heat Flow Errors 6 | . . . . 2 4 Energy Discharges 5 | . . . 2 1 2 Data Loss (minor) 7 | . . . 2 . 5 Data Loss (major) 1 | . . . 1 . . Misfires 2 | . . . . 1 1 Alerts 2 | . . . . 1 1 Weapon Failures 2 | . . . . . 2 Overload Shots . | . . . . . . Overflow Damage 40 | . . . . 14 26 Projectiles . | . . . . . . Explosions 40 | . . . . 14 26 Melee . | . . . . . . Knockbacks 1 | . . . 1 . . Impact 1 | . . . 1 . . Kinetic . | . . . . . . Secondary . | . . . . . . Self-Inflicted Damage . | . . . . . . Shots . | . . . . . . Rammed 18 | . 8 5 5 . . Targets Rammed 20 | . 9 6 5 . . Kicked . | . . . . . . Crushed 2 | . 1 1 . . . Highest Temperature 275 | . 165 102 268 264 275 Average Temperature 64 | . 50 57 67 91 54 Received Heat Transfer 789 | . 282 48 414 45 . Effects 1 | . . . 1 . . Energy Bleed 1 | . . . 1 . . Siege Activations . | . . . . . . Robots Corrupted . | . . . . . . Combat Hostiles . | . . . . . . Parts Fried . | . . . . . . Impact Corruptions . | . . . . . . Robots Melted . | . . . . . . Combat Hostiles . | . . . . . . Parts Melted 6 | . 2 . 4 . . Heat Transferred 4046 | . 1850 222 1924 50 . Parts Sabotaged . | . . . . . . Parts Stolen . | . . . . . . Parts Stripped . | . . . . . . Power Chain Reactions . | . . . . . . Missiles Intercepted . | . . . . . . Alert | -11 -10 -10 -9 -9 -9 ------- Run | Scr Mat Min Mat Min Exi Peak Influence 438 | . 190 81 438 252 . Initial 169 | . . 5 . 169 . Average 134 | . 42 33 288 168 . Maximum Alert Level 2 | . . . 2 1 . Low Security (%) 68 | 100 100 100 18 61 . Level 1 27 | . . . 70 38 . Level 2 3 | . . . 10 . . Level 3 . | . . . . . . Level 4 . | . . . . . . Level 5 . | . . . . . . High Security . | . . . . . . Max Security . | . . . . . . Squads Dispatched 9 | . 4 . 4 1 . Investigation 6 | . 2 . 3 1 . Extermination . | . . . . . . Reinforcement 3 | . 2 . 1 . . Assault . | . . . . . . Garrison . | . . . . . . Intercept . | . . . . . . Searches Triggered . | . . . . . . Construction Impeded . | . . . . . . Haulers Reinforced . | . . . . . . Active Scanning Responses . | . . . . . . Cargo Convoy Interrupts . | . . . . . . Stealth | -11 -10 -10 -9 -9 -9 --------- Run | Scr Mat Min Mat Min Exi Distress Signals 3 | . 1 . 2 . . Communications Jammed . | . . . . . . Distress Signals . | . . . . . . Times Spotted 77 | . 28 2 40 2 5 Peak Tracking Total 6 | . 5 2 4 2 6 Tactical Retreats 4 | . . . 2 . 2 Traps | -11 -10 -10 -9 -9 -9 ------- Run | Scr Mat Min Mat Min Exi Traps Triggered 1 | . 1 . . . . Indirectly . | . . . . . . Trap Hack Attempts 6 | . 6 . . . . Triggered . | . . . . . . Disarmed 1 | . 1 . . . . Reprogrammed . | . . . . . . Reused . | . . . . . . Traps Extracted . | . . . . . . Installed . | . . . . . . Triggered . | . . . . . . Machines | -11 -10 -10 -9 -9 -9 ---------- Run | Scr Mat Min Mat Min Exi Machines Disabled 7 | . . . 2 1 4 Max in Single Turn 2 | . . . 1 1 2 Machines Sabotaged . | . . . . . . Garrisons Compromised . | . . . . . . Overloaded Fab Kills . | . . . . . . Hacking | -11 -10 -10 -9 -9 -9 --------- Run | Scr Mat Min Mat Min Exi Machines Accessed 20 | . 9 . 9 1 1 Terminals 12 | . 6 . 6 . . Fabricators . | . . . . . . Repair Stations 1 | . 1 . . . . Recycling Units 4 | . 2 . 2 . . Scanalyzers 1 | . . . 1 . . Garrison Access . | . . . . . . Total Hacks 68 | . 38 . 28 1 1 Successful 44 | . 25 . 17 1 1 Failed 23 | . 12 . 11 . . Catastrophic 1 | . 1 . . . . Database Lockouts 1 | . 1 . . . . Manual 42 | . 19 . 22 . 1 Terminals 47 | . 25 . 22 . . Fabricators . | . . . . . . Repair Stations 9 | . 9 . . . . Recycling Units 6 | . 4 . 2 . . Scanalyzers 4 | . . . 4 . . Garrison Access . | . . . . . . Terminal Hacks 22 | . 13 . 7 1 1 Part Schematic 2 | . 2 . . . . Robot Analysis 2 | . 2 . . . . Prototype ID Bank 3 | . 2 . 1 . . Open Door 1 | . . . . 1 . Branch Access Points 1 | . 1 . . . . Alert Level 3 | . 1 . 2 . . Unreport Threat 1 | . . . 1 . . Locate Traps 3 | . 2 . 1 . . Dispatch Records 1 | . 1 . . . . Recall Investigation 1 | . . . 1 . . Hauler Manifests 3 | . 2 . 1 . . EX-Prototype ID Bank 1 | . . . . . 1 Fabricator Hacks . | . . . . . . Repair Station Hacks 8 | . 8 . . . . Scan Component 4 | . 4 . . . . Repair 4 | . 4 . . . . Recycling Unit Hacks . | . . . . . . Scanalyzer 4 | . . . 4 . . Insert Component 2 | . . . 2 . . Analyze 2 | . . . 2 . . Garrison Access Hacks . | . . . . . . Unauthorized Hacks 10 | . 4 . 6 . . Terminals 6 | . 2 . 4 . . Botnet 4 | . 1 . 3 . . Operators 2 | . 1 . 1 . . Fabricators . | . . . . . . Repair Stations . | . . . . . . Recycling Units 4 | . 2 . 2 . . Tunnel 4 | . 2 . 2 . . Scanalyzers . | . . . . . . Garrison Access . | . . . . . . Data Cores Recovered . | . . . . . . Used . | . . . . . . Hacking Detections 11 | . 4 . 7 . . Full Trace Events 1 | . . . 1 . . Feedback Events 1 | . . . 1 . . Corruption 1 | . . . 1 . . Feedback Blocked . | . . . . . . Robot Schematics Acquired . | . . . . . . Robots Built . | . . . . . . Authchips . | . . . . . . Time . | . . . . . . Total Robot Build Rating . | . . . . . . Part Schematics Acquired 4 | . 2 . 2 . . Parts Built . | . . . . . . Authchips . | . . . . . . Time . | . . . . . . Total Part Build Rating . | . . . . . . Parts Repaired 4 | . 4 . . . . Time 104 | . 104 . . . . Parts Recycled . | . . . . . . Recycled Matter . | . . . . . . Retrieved Matter . | . . . . . . Retrieved Components . | . . . . . . Parts Scanalyzed 2 | . . . 2 . . Part Schematics Acquired 2 | . . . 2 . . Parts Damaged . | . . . . . . Bothacking | -11 -10 -10 -9 -9 -9 ------------ Run | Scr Mat Min Mat Min Exi Used RIF Installer . | . . . . . . Robots Hacked . | . . . . . . Non-combat . | . . . . . . Combat . | . . . . . . Robot Hacks Applied . | . . . . . . Relay Couplers Released . | . . . . . . Fabnet Peak Effective % . | . . . . . . Robots Rewired . | . . . . . . Allies Hacked . | . . . . . . Hacks Repelled . | . . . . . . Allies | -11 -10 -10 -9 -9 -9 -------- Run | Scr Mat Min Mat Min Exi Total Allies 3 | . . 3 . . . Largest Group 3 | . . 3 3 . . Highest-Rated Group 40 | . . 40 40 . . Highest-Rated Ally 16 | . . 16 16 . . Total Orders . | . . . . . . Ally Attacks 56 | . . 7 49 . . Total Damage 658 | . . 59 599 . . Kills 16 | . . 3 13 . . Allies Corrupted 1 | . . . 1 . . Allies Melted . | . . . . . . Intel | -11 -10 -10 -9 -9 -9 ------- Run | Scr Mat Min Mat Min Exi Robot Analysis Total 2 | . 2 . . . . Derelict Logs Recovered 2 | . . 1 . 1 . Drone Launches . | . . . . . . Drone Recoveries . | . . . . . . Exploration | -11 -10 -10 -9 -9 -9 ------------- Run | Scr Mat Min Mat Min Exi Turns Passed 7847 | 76 2211 1662 2372 558 968 Spaces Moved 2864 | 46 756 669 815 224 354 Core 14 | 14 . . . . . Treads 2850 | 32 756 669 815 224 354 Legs . | . . . . . . Wheels . | . . . . . . Hover . | . . . . . . Flight . | . . . . . . Fastest Speed 50 | 50 160 240 240 240 240 Average Speed 236 | 133 233 240 240 240 240 Slowest Speed 320 | 160 320 240 240 240 240 Overloaded Moves . | . . . . . . Propulsion Burnouts . | . . . . . . Robots Hopped . | . . . . . . Cave-ins Triggered . | . . . . . . Exploration Rate (%) 64 | 5 99 100 78 53 50 Regions Visited 5 Branch Regions 3 Pre-discovered Areas 5 | . 2 1 2 . . Known Exits Taken 1 | . 1 . . . . Unknown Exits Taken 4 | 1 . 1 1 1 . Scrap Searched 1 | . . 1 . . . Spaces Dug 11 | . . . 11 . . Terrain Destroyed 55 | . . . 23 6 26 Melee . | . . . . . . Projectile . | . . . . . . AOE 55 | . . . 23 6 26 Terrain Rammed . | . . . . . . Walls Destroyed . | . . . . . . Machines Disabled . | . . . . . . Actions | -11 -10 -10 -9 -9 -9 --------- Run | Scr Mat Min Mat Min Exi Total 3547 | 58 1053 707 1079 236 414 Wait 249 | . 164 23 62 . . Move 2860 | 45 755 668 815 223 354 Hop . | . . . . . . Pick Up 66 | 7 22 2 27 3 5 Fast Attach 18 | 5 6 . 4 . 3 Attach 19 | 1 5 . 6 2 5 Detach 3 | . . . . . 3 Swap 40 | . 8 . 29 . 3 Drop 70 | . 6 2 53 3 6 Fire 197 | . 72 6 79 5 35 Melee . | . . . . . . Ram . | . . . . . . Kick . | . . . . . . Crush 19 | . 9 6 4 . . Escape Stasis . | . . . . . . Rewire . | . . . . . . Trap 6 | . 6 . . . . Miscellaneous . | . . . . . . Route ------- -11/Scrapyard -10/Materials (discovered 5 exits: *Mat x3 / *Min x2) -10/Mines (discovered 2 exits: *Mat x2) -9/Materials (discovered 3 exits: *Mat x2 / *Min) -9/Mines (discovered 3 exits: Mat / *Exi / [*Zio]) -9/Exiles (discovered 1 exit: [*Min]) History --------- Turn | Location | Event 3 | -11/Scrapyard | Discovered new exit (range 15) 77 | -11/Scrapyard | Entered Materials 307 | -10/Materials | Discovered new exit (range 10) 319 | -10/Materials | Build established: Mutant 326 | -10/Materials | Discovered new exit (range 16) 775 | -10/Materials | Discovered new exit (range 9) 965 | -10/Materials | Repaired Lgt. Treads 992 | -10/Materials | Repaired Assault Rifle 1442 | -10/Materials | Discovered new exit (range 16) 1665 | -10/Materials | Central database locked down 1781 | -10/Materials | Discovered new exit (range 9) 1815 | -10/Materials | Identified exit to Mines 2188 | -10/Materials | Repaired Lgt. Treads 2215 | -10/Materials | Repaired Lgt. Treads 2288 | -10/Materials | Entered Mines 2293 | -10/Mines | Core integrity fell below 50% 2450 | -10/Mines | Discovered new exit (range 12) 2753 | -10/Mines | Learned location of Zion (-7) 2880 | -10/Mines | Discovered new exit (range 10) 2914 | -10/Mines | Assisted by bots powering up and referring to "LRC-V3" 3950 | -10/Mines | Entered Materials 3950 | -9/Materials | Accompanied by 3 allies 3950 | -9/Materials | Evolved 2 slots: Utility x1, Weapon x1 4248 | -9/Materials | Build established: Gunner 4432 | -9/Materials | Discovered new exit (range 8) 4902 | -9/Materials | Discovered new exit (range 15) 5095 | -9/Materials | Build established: Scavenger-Gunner 5527 | -9/Materials | Discovered new exit (range 15) 6322 | -9/Materials | Entered Mines 6410 | -9/Mines | Met a Derelict shopkeep closing up shop 6558 | -9/Mines | Build established: Gunner 6813 | -9/Mines | Identified exit to Materials 6826 | -9/Mines | A Derelict revealed a hidden shortcut to a safe place 6868 | -9/Mines | Deemed a non-threat by the Exiles lab entrance 6871 | -9/Mines | Discovered new exit (range 5) 6880 | -9/Mines | Entered Exiles 6919 | -9/Exiles | Discovered new exit (range 15) 6943 | -9/Exiles | Met 8R-AWN 6979 | -9/Exiles | Met EX-HEX 7056 | -9/Exiles | Met EX-BIN 7090 | -9/Exiles | Aligned with FarCom system 7092 | -9/Exiles | Given EX-Vault access code 7147 | -9/Exiles | Opened EX-Vault 7205 | -9/Exiles | Warned to stay clear of 0b10 Research branches 7237 | -9/Exiles | Build established: Mutant 7297 | -9/Exiles | Attacked by the Exiles 7332 | -9/Exiles | Core integrity fell below 50% 7398 | -9/Exiles | Destroyed 8R-AWN 7403 | -9/Exiles | Lost 3 parts (1p1n1u) 7457 | -9/Exiles | Found Prototype Processor 7469 | -9/Exiles | Found Prototype Protection 7532 | -9/Exiles | Core integrity fell below 20% 7848 | -9/Exiles | Destroyed by DAS Turret with DAS Cannon Last Messages --------------- 07475_ The unstable cave ceiling collapses. 07478_ System corrupted: Matter fused (-6). 07483_ The unstable cave ceiling collapses. 07530_ System corrupted: IFF burst signal emitted. 07532_ Acquired 5 matter. 07534_ Lgt. Treads destroyed. 07534_ Lgt. Armor Plating destroyed. 07535_ Acquired 6 matter. 07554_ System corrupted: Energy discharge (-34). 07631_ System corrupted: Heat flow error (+169). 07672_ System corrupted: Component data lost. 07689_ System corrupted: Heat flow error (+195). 07698_ Rigged Rnf. Deuterium Engine explodes. 07698_ Imp. Assault Rifle destroyed. 07698_ Machine disabled. 07708_ Rigged Fission Core explodes. 07713_ Acquired Imp. Shield Generator. 07715_ System corrupted: Matter fused (-7). 07829_ System corrupted: Component data lost. 07844_ XN5 L#K8XZ:FZ2RPUCVEADXAFOAV>>K| Map ----- +----------------------------------------------------+ | ?????????????????????#" ## #?????????????? | | ?????????????????????#""""""?# #?#########???? | | ?????????????????????##"###??# #?#"""""""#???? | | ?????????????????????????????# #?#"""""""#???? | | ?????????????????????????????# #?#"""""""#???? | | ????????????????????????????## ###"" """"#???? | | ????????????????????????????#" """"#???? | | ????????????????????????????#" """#???? | | ????????????????????????????#" """#???? | | ????????????????????????????#" """#???? | | ????????????????????????????#" """#???? | | ????????????????????????????#" """#???? | | ????????????????????????????## """"???? | | ?????????????????????????????# """#???? | | ?????????????????????????????#" "X" """????? | | ?????????????????????????????#" """ #???? | | ?????????????????????????????#" """""""""#???? | | ????????????????????????????##" ###########???? | | ???????????????????????????##"" #?????????????? | | ??????????????????#???######"" #?????????????? | | ???????????????? #"###""""""" ##????????????? | | ??????????? """""" " "" ####?######### | | ??????????? "" """ " #;###"""""""" | | ?????????? " " % " " " "" | | ?????????? " " | | ?????????? @ " | | ?????????? % | | ?????????? | | ??????????? | | ??????????? """""" | | ???????????? ######""" | | ???????????? ""##????#####" ! | | ???????????? """#??????????##""" !! | | ????????????? """#????????????#" !! | | ????????????? ""????????????## " !! | | ?????????????? ???####???####"""" ! | | ?????????????? ## ####""" | | ??????????????? """" | | ??????????????? | | ??????????????? % | | ??????????????? | | ??????????????? " "" | | ???????????????? ""## ##""" " " " | | ???????????????? ""##?# ######""" " # | | ????????????????? """"#???# #????###"""" ## | | ????????????????? "??????# #??????###### # # | | ????????????????? ?? ?????????! ???????????#### | | ??????????????????????????????" ??????????????## | | ?????????????????????????????#" ??????????????? | | ?????????????????????????????#!!""!??????????????? | +----------------------------------------------------+ Best States ------------- Heat Dissipation 35 Energy Generation 12 Energy Capacity 265 Matter Stores 300 Matter Capacity 300 Sight Range 16 Terrain Scan Density 10 Armor Coverage 150 Weapon Cycling 15 Evasion (%) 40 Targeting Accuracy 5 Recoil Reduction 2 Item Schematics ----------------- Huge Storage Unit | -10/Materials | Hacked Hcp. Storage Unit | -10/Materials | Hacked Hacking Suite | -9/Materials | Scanalyzed Grenade Launcher | -9/Materials | Scanalyzed Robot Schematics ------------------ None Fabricated ------------ Nothing Alien Tech Used ----------------- None Achievements -------------- None Challenges ------------ None Game ------ Seed EnhancedLinkedKatana Manual? 0 Play Time 00:29:29 Cumulative 489.7 hours Start 2022.06.23 @ 10:09:35 End 2022.06.23 @ 10:38:57 Sessions 1 Manual Loads 0 Difficulty Rogue Special Mode None Game No. 460 Rogue 460 Adventurer 0 Explorer 0 Win Type - Total 22 Types 13/2/4/2/0/0/0/1/0 Lore% 94 Gallery% 93 Achievement% 78 Wizard Run 0 Options --------- ASCII 0 Keyboard 0 Movement Arrows Keybinds 0 Fullscreen 1 Font 18/Smallcaps Map View 76x50 Tactical HUD 1 Map Filters NONE Filters NONE Steam 1 RUN: 9fb216ca-791d-4387-810f-d8bba851eb75